[Event "28th Bosnjaci Open 2024"]
[Site "Bosnjaci"]
[Date "2024.01.05"]
[Round "4.15"]
[White "Bobanac, Miro"]
[Black "Alfirevic, Duje"]
[Result "0-1"]
[ECO "A13"]
[WhiteElo "2238"]
[BlackElo "2000"]
[Annotator "RC"]
[PlyCount "110"]
[EventDate "2024.01.02"]
[EventType "swiss"]
[EventCountry "CRO"]
[SourceTitle "playchess.com"]
[Source "ChessBase"]
[SourceQuality "1"]
[TimeControl "5400+30"]

1. Nf3 {[%emt 0:00:05]} Nf6 {[%emt 0:01:56]} 2. c4 {[%emt 0:00:49]} e6 {[%emt 0:00:52]} 3. g3 {[%emt 0:00:28]} d5 {[%emt 0:00:15]} 4. b3 {[%emt 0:01:26]} Bd6 {[%emt 0:04:20]} 5. Bb2 {[%emt 0:01:23]} O-O {[%emt 0:00:50]} 6. Bg2 {[%emt 0:00:34]} Nbd7 {[%emt 0:01:21]} 7. O-O {[%emt 0:01:48]} b6 {[%emt 0:02:45]} 8. Nc3 {[%emt 0:03:24]} Bb7 {[%emt 0:02:09]} 9. d3 {[%emt 0:01:12]} Re8 {[%emt 0:01:29]} 10. Qc2 {[%emt 0:03:27]} a6 {[%emt 0:01:51]} 11. e4 {[%emt 0:04:32]} dxe4 {[%emt 0:06:28]} 12. dxe4 {[%emt 0:01:37]} Bb4 {[%emt 0:24:36]} 13. Rfe1 {[%emt 0:19:30]} e5 {[%emt 0:12:19]} 14. a3 {[%emt 0:02:01]} Bxc3 {[%emt 0:00:30]} 15. Bxc3 {[%emt 0:00:09]} Bc6 {[%emt 0:10:57]} 16. Nd2 {[%emt 0:07:54]} Qc8 {[%emt 0:01:30]} 17. Nf1 {[%emt 0:01:44]} Nc5 {[%emt 0:05:25]} 18. f3 {[%emt 0:00:40]} Nfd7 {[%emt 0:01:42]} 19. Ne3 {[%emt 0:01:11]} Qb7 {[%emt 0:00:49]} 20. Nd5 {[%emt 0:03:28]} Rad8 {[%emt 0:00:53]} 21. Rad1 {[%emt 0:00:28]} Ne6 {[%emt 0:03:01]} 22. Qb2 {[%emt 0:05:27]} f6 {[%emt 0:00:28]} 23. Rd2 {[%emt 0:07:24]} Ndf8 {[%emt 0:00:46]} 24. Red1 {[%emt 0:01:37]} Bd7 {[%emt 0:00:54]} 25. f4 {[%emt 0:04:07]} exf4 {[%emt 0:09:57]} 26. Bxf6 {[%emt 0:01:57]} Rb8 {[%emt 0:02:57]} 27. Bxg7 {[%emt 0:06:03]} Nxg7 {[%emt 0:01:16]} 28. Nf6+ {[%emt 0:00:39]} Kh8 {[%emt 0:00:36]} 29. Rxd7 {[%emt 0:04:43]} Nxd7 {[%emt 0:00:23]} 30. Nxe8 {[%emt 0:00:10]} Rxe8 {[%emt 0:00:12]} 31. Rxd7 {[%emt 0:00:09]} Rg8 {[%emt 0:00:03]} 32. gxf4 {[%emt 0:00:30]} Qc8 {[%emt 0:00:06]} 33. Qd4 {[%emt 0:03:26]} Qf8 {[%emt 0:00:35]} 34. f5 {[%emt 0:02:44]} Qxa3 {[%emt 0:00:07]} 35. Qc3 {[%emt 0:00:48]} Qc5+ {[%emt 0:01:19]} 36. Kf1 {[%emt 0:00:45]} Qc6 {[%emt 0:00:29]} 37. Qd4 {[%emt 0:00:16]} Qh6 {[%emt 0:00:16]} 38. Qd2 {[%emt 0:04:53]} Qxh2 {[%emt 0:00:55]} 39. Qc3 {[%emt 0:02:01]} Qf4+ {[%emt 0:00:42]} 40. Bf3 {[%emt 0:00:28]} Qg3 {[%emt 0:01:46]} 41. f6 {[%emt 0:00:56]} Qh3+ {[%emt 0:00:06]} 42. Ke2 {[%emt 0:01:37]} Qxd7 {[%emt 0:00:02]} 43. Qe5 {[%emt 0:02:55]} Re8 {[%emt 0:01:33]} 44. fxg7+ {[%emt 0:00:00]} Kg8 {[%emt 0:00:01]} 45. Qh5 {[%emt 0:00:13]} Qf7 {[%emt 0:00:54]} 46. Qh6 {[%emt 0:01:16]} Qxg7 {[%emt 0:00:31]} 47. Qc6 {[%emt 0:00:23]} Qe5 {[%emt 0:00:25]} 48. Ke3 {[%emt 0:00:32]} Rf8 {[%emt 0:00:33]} 49. Qd5+ {[%emt 0:00:33]} Qxd5 {[%emt 0:00:11]} 50. cxd5 {[%emt 0:00:05]} Rxf3+ {[%emt 0:00:51]} 51. Kxf3 {[%emt 0:00:01]} a5 {[%emt 0:00:01]} 52. Kf4 {[%emt 0:00:34]} Kf7 {[%emt 0:00:39]} 53. Ke5 {[%emt 0:00:20]} h5 {[%emt 0:00:48]} 54. d6 {[%emt 0:00:20]} cxd6+ {[%emt 0:00:10]} 55. Kxd6 {[%emt 0:00:01]} Ke8 {[%emt 0:00:50]} 0-1

[Event "28th Bosnjaci Open 2024"]
[Site "Bosnjaci"]
[Date "2024.01.05"]
[Round "4.16"]
[White "Ljikar, Zoran"]
[Black "Simunic, Krunoslav"]
[Result "1/2-1/2"]
[ECO "C11"]
[WhiteElo "2200"]
[BlackElo "1906"]
[Annotator "RC"]
[PlyCount "99"]
[EventDate "2024.01.02"]
[EventType "swiss"]
[EventCountry "CRO"]
[SourceTitle "playchess.com"]
[Source "ChessBase"]
[SourceQuality "1"]
[TimeControl "5400+30"]

1. e4 {[%emt 0:00:03]} e6 {[%emt 0:00:27]} 2. d4 {[%emt 0:00:14]} d5 {[%emt 0:00:18]} 3. Nc3 {[%emt 0:00:12]} Nf6 {[%emt 0:00:28]} 4. e5 {[%emt 0:00:27]} Nfd7 {[%emt 0:00:20]} 5. f4 {[%emt 0:00:15]} c5 {[%emt 0:00:17]} 6. Nf3 {[%emt 0:00:09]} Nc6 {[%emt 0:00:31]} 7. Be3 {[%emt 0:00:14]} cxd4 {[%emt 0:00:59]} 8. Nxd4 {[%emt 0:00:14]} Bc5 {[%emt 0:00:42]} 9. Qd2 {[%emt 0:00:28]} Nxd4 {[%emt 0:00:30]} 10. Bxd4 {[%emt 0:00:03]} Bxd4 {[%emt 0:00:15]} 11. Qxd4 {[%emt 0:00:08]} Qb6 {[%emt 0:00:30]} 12. O-O-O {[%emt 0:09:04]} a6 {[%emt 0:13:35]} 13. h4 {[%emt 0:04:04]} Qxd4 {[%emt 0:06:20]} 14. Rxd4 {[%emt 0:00:02]} b5 {[%emt 0:07:51]} 15. Rh3 {[%emt 0:11:59]} Bb7 {[%emt 0:14:45]} 16. a4 {[%emt 0:09:14]} bxa4 {[%emt 0:03:04]} 17. Rxa4 {[%emt 0:00:37]} Ke7 {[%emt 0:09:21]} 18. Rg3 {[%emt 0:05:47]} g6 {[%emt 0:02:01]} 19. Ra5 {[%emt 0:05:45]} f6 {[%emt 0:09:15]} 20. exf6+ {[%emt 0:03:06]} Nxf6 {[%emt 0:00:29]} 21. Ne2 {[%emt 0:00:29]} Rhf8 {[%emt 0:08:22]} 22. Rb3 {[%emt 0:01:00]} Bc6 {[%emt 0:08:23]} 23. Nd4 {[%emt 0:01:25]} Bd7 {[%emt 0:00:46]} 24. Rxa6 {[%emt 0:06:27]} Rxa6 {[%emt 0:00:21]} 25. Bxa6 {[%emt 0:00:01]} Ne4 {[%emt 0:00:26]} 26. Rf3 {[%emt 0:04:51]} Ra8 {[%emt 0:03:21]} 27. Ra3 {[%emt 0:00:08]} Rf8 {[%emt 0:00:25]} 28. g3 {[%emt 0:01:52]} h6 {[%emt 0:02:09]} 29. b4 {[%emt 0:08:37]} g5 {[%emt 0:03:25]} 30. hxg5 {[%emt 0:02:39]} hxg5 {[%emt 0:00:01]} 31. Rf3 {[%emt 0:00:34]} Nxg3 {[%emt 0:04:11]} 32. Rxg3 {[%emt 0:01:28]} gxf4 {[%emt 0:00:00]} 33. Rg7+ {[%emt 0:00:20]} Kd6 {[%emt 0:00:01]} 34. Nf3 {[%emt 0:02:26]} Rf6 {[%emt 0:00:00]} 35. Bd3 {[%emt 0:01:15]} Be8 {[%emt 0:01:10]} 36. Rg8 {[%emt 0:02:16]} Bh5 {[%emt 0:00:54]} 37. Be2 {[%emt 0:00:42]} e5 {[%emt 0:02:30]} 38. Rd8+ {[%emt 0:05:35]} Ke6 {[%emt 0:00:18]} 39. Kd2 {[%emt 0:01:33]} Bxf3 {[%emt 0:00:29]} 40. Bxf3 {[%emt 0:00:01]} e4 {[%emt 0:00:01]} 41. Bg4+ {[%emt 0:00:10]} Ke5 {[%emt 0:00:26]} 42. Re8+ {[%emt 0:00:44]} Kd6 {[%emt 0:00:14]} 43. Ra8 {[%emt 0:08:01]} Ke5 {[%emt 0:00:40]} 44. Re8+ {[%emt 0:01:05]} Kd6 {[%emt 0:00:04]} 45. Rd8+ {[%emt 0:03:52]} Ke5 {[%emt 0:00:06]} 46. Re8+ {[%emt 0:00:18]} Kd6 {[%emt 0:00:02]} 47. Ra8 {[%emt 0:00:18]} Ke5 {[%emt 0:00:05]} 48. Re8+ {[%emt 0:00:05]} Kd6 {[%emt 0:00:12]} 49. Ra8 {[%emt 0:01:06]} Ke5 {[%emt 0:00:10]} 50. Re8+ {[%emt 0:07:13]} 1/2-1/2

[Event "28th Bosnjaci Open 2024"]
[Site "Bosnjaci"]
[Date "2024.01.05"]
[Round "4.17"]
[White "Ivancic, Ivan"]
[Black "Goric, Esad"]
[Result "1/2-1/2"]
[ECO "B01"]
[WhiteElo "2001"]
[BlackElo "2196"]
[Annotator "RC"]
[PlyCount "27"]
[EventDate "2024.01.02"]
[EventType "swiss"]
[EventCountry "CRO"]
[SourceTitle "playchess.com"]
[Source "ChessBase"]
[SourceQuality "1"]
[TimeControl "5400+30"]

1. e4 {[%emt 0:00:03]} d5 {[%emt 0:00:10]} 2. exd5 {[%emt 0:00:11]} Qxd5 {[%emt 0:00:03]} 3. Nc3 {[%emt 0:00:16]} Qd6 {[%emt 0:00:01]} 4. d4 {[%emt 0:00:23]} a6 {[%emt 0:00:01]} 5. Nf3 {[%emt 0:01:23]} Nf6 {[%emt 0:00:03]} 6. g3 {[%emt 0:00:44]} b5 {[%emt 0:00:45]} 7. Bg2 {[%emt 0:02:24]} Bb7 {[%emt 0:00:01]} 8. O-O {[%emt 0:01:07]} e6 {[%emt 0:00:02]} 9. a3 {[%emt 0:01:20]} Be7 {[%emt 0:00:03]} 10. Bf4 {[%emt 0:00:34]} Qd8 {[%emt 0:00:05]} 11. Qe2 {[%emt 0:03:56]} O-O {[%emt 0:00:04]} 12. Rad1 {[%emt 0:01:09]} Nd5 {[%emt 0:03:29]} 13. Nxd5 {[%emt 0:11:41]} Bxd5 {[%emt 0:00:13]} 14. Ne5 {[%emt 0:05:41]} 1/2-1/2

[Event "28th Bosnjaci Open 2024"]
[Site "Bosnjaci"]
[Date "2024.01.05"]
[Round "4.18"]
[White "Markovic, Franjo-Josip"]
[Black "Pusara, Mihailo"]
[Result "1-0"]
[ECO "D37"]
[WhiteElo "2194"]
[BlackElo "1928"]
[Annotator "ChessBase"]
[PlyCount "137"]
[EventDate "2024.01.02"]
[EventType "swiss"]
[EventCountry "CRO"]
[SourceTitle "playchess.com"]
[Source "ChessBase"]
[SourceQuality "1"]
[TimeControl "5400+30"]

1. d4 {[%emt 0:02:15]} d5 {[%emt 0:00:06]} 2. Nf3 {[%emt 0:00:11]} Nf6 {[%emt 0:00:06]} 3. c4 {[%emt 0:00:09]} e6 {[%emt 0:00:05]} 4. Nc3 {[%emt 0:00:15]} Be7 {[%emt 0:00:06]} 5. Bf4 {[%emt 0:00:25]} O-O {[%emt 0:00:53]} 6. e3 {[%emt 0:00:06]} a6 {[%emt 0:01:45]} 7. c5 {[%emt 0:00:24]} Nc6 {[%emt 0:05:46]} 8. a3 {[%emt 0:00:41]} Ne4 {[%emt 0:09:20]} 9. Nxe4 {[%emt 0:03:09]} dxe4 {[%emt 0:00:06]} 10. Ne5 {[%emt 0:00:10]} Nxe5 {[%emt 0:05:18]} 11. Bxe5 {[%emt 0:00:07]} Bd7 {[%emt 0:03:21]} 12. b4 {[%emt 0:01:14]} f6 {[%emt 0:19:49]} 13. Bg3 {[%emt 0:00:55]} Bb5 {[%emt 0:05:49]} 14. Be2 {[%emt 0:02:37]} c6 {[%emt 0:04:18]} 15. a4 {[%emt 0:02:04]} Bxe2 {[%emt 0:00:09]} 16. Qxe2 {[%emt 0:00:08]} Qd5 {[%emt 0:01:35]} 17. O-O {[%emt 0:00:51]} f5 {[%emt 0:02:47]} 18. Rfb1 {[%emt 0:02:01]} Ra7 {[%emt 0:02:23]} 19. Be5 {[%emt 0:01:47]} h6 {[%emt 0:03:27]} 20. h3 {[%emt 0:01:25]} Kh7 {[%emt 0:01:34]} 21. Ra3 {[%emt 0:00:42]} Qd7 {[%emt 0:02:05]} 22. Rab3 {[%emt 0:02:31]} Qd5 {[%emt 0:07:33]} 23. Qb2 {[%emt 0:03:03]} Qc4 {[%emt 0:07:17]} 24. Rc1 {[%emt 0:00:41]} Qd5 {[%emt 0:00:08]} 25. Qc3 {[%emt 0:00:24]} Bf6 {[%emt 0:01:20]} 26. Bd6 {[%emt 0:01:08]} Re8 {[%emt 0:00:13]} 27. b5 {[%emt 0:02:50]} axb5 {[%emt 0:01:52]} 28. axb5 {[%emt 0:00:10]} e5 {[%emt 0:00:33]} 29. dxe5 {[%emt 0:02:48]} Bxe5 {[%emt 0:00:05]} 30. Bxe5 {[%emt 0:04:55]} Rxe5 {[%emt 0:02:26]} 31. bxc6 {[%emt 0:00:43]} bxc6 {[%emt 0:00:06]} 32. Rb6 {[%emt 0:02:51]} Re6 {[%emt 0:00:04]} 33. Rb4 {[%emt 0:00:10]} Qe5 {[%emt 0:04:50]} 34. Rd4 {[%emt 0:01:12]} Rb7 {[%emt 0:00:44]} 35. Qc4 {[%emt 0:01:41]} Rb5 {[%emt 0:01:24]} 36. Rd8 {[%emt 0:01:42]} f4 {[%emt 0:02:38]} 37. Qd4 {[%emt 0:04:47]} f3 {[%emt 0:01:27]} 38. g4 {[%emt 0:04:40]} Qxd4 {[%emt 0:01:37]} 39. Rxd4 {[%emt 0:03:07]} Rb8 {[%emt 0:04:05]} 40. Rd6 {[%emt 0:07:22]} Rbe8 {[%emt 0:00:44]} 41. Rcd1 {[%emt 0:07:01]} Kg6 {[%emt 0:00:18]} 42. Kh2 {[%emt 0:01:15]} Kf7 {[%emt 0:00:06]} 43. h4 {[%emt 0:01:15]} g5 {[%emt 0:00:20]} 44. Kg3 {[%emt 0:03:44]} Rxd6 {[%emt 0:01:13]} 45. Rxd6 {[%emt 0:01:17]} Re6 {[%emt 0:00:11]} 46. Rd8 {[%emt 0:01:07]} Re5 {[%emt 0:00:25]} 47. Rd7+ {[%emt 0:00:59]} Re7 {[%emt 0:00:28]} 48. Rd4 {[%emt 0:00:13]} Re5 {[%emt 0:00:30]} 49. Rb4 {[%emt 0:00:43]} Kf6 {[%emt 0:00:38]} 50. Ra4 {[%emt 0:03:43]} Ke6 {[%emt 0:00:53]} 51. Ra7 {[%emt 0:01:09]} Kd5 {[%emt 0:00:27]} 52. Rg7 {[%emt 0:03:10]} Kxc5 {[%emt 0:00:31]} 53. Rg6 {[%emt 0:00:43]} Kb5 {[%emt 0:00:32]} 54. Rxh6 {[%emt 0:01:25]} gxh4+ {[%emt 0:00:25]} 55. Kf4 {[%emt 0:02:20]} Re8 {[%emt 0:00:12]} 56. Rxh4 {[%emt 0:08:36]} c5 {[%emt 0:00:04]} 57. g5 {[%emt 0:02:17]} c4 {[%emt 0:00:34]} 58. g6 {[%emt 0:01:55]} c3 {[%emt 0:00:11]} 59. g7 {[%emt 0:01:05]} Rg8 {[%emt 0:01:24]} 60. Kxe4 {[%emt 0:00:29]} c2 {[%emt 0:00:39]} 61. Rh1 {[%emt 0:01:35]} Kc4 {[%emt 0:00:22]} 62. Rh8 {[%emt 0:02:04]} c1=Q {[%emt 0:00:38]} 63. Rxg8 {[%emt 0:00:13]} Qc2+ {[%emt 0:00:33]} 64. Kf4 {[%emt 0:00:30]} Kd3 {[%emt 0:00:30]} 65. Rd8+ {[%emt 0:00:14]} Ke2 {[%emt 0:00:26]} 66. g8=Q {[%emt 0:00:18]} Qc7+ {[%emt 0:00:18]} 67. Kg4 {[%emt 0:00:38]} Kxf2 {[%emt 0:00:45]} 68. Qa2+ {[%emt 0:00:16]} Kxe3 {[%emt 0:00:28]} 69. Qd2+ {[%emt 0:00:21]} 1-0

[Event "28th Bosnjaci Open 2024"]
[Site "Bosnjaci"]
[Date "2024.01.05"]
[Round "4.19"]
[White "Drmic, Bozo"]
[Black "Vucenovic, Damian"]
[Result "0-1"]
[ECO "C24"]
[WhiteElo "2000"]
[BlackElo "2193"]
[Annotator "RC"]
[PlyCount "108"]
[EventDate "2024.01.02"]
[EventType "swiss"]
[EventCountry "CRO"]
[SourceTitle "playchess.com"]
[Source "ChessBase"]
[SourceQuality "1"]
[TimeControl "5400+30"]

1. e4 {[%emt 0:00:03]} e5 {[%emt 0:00:25]} 2. Bc4 {[%emt 0:00:41]} Nf6 {[%emt 0:00:31]} 3. d3 {[%emt 0:01:51]} Bc5 {[%emt 0:00:25]} 4. Ne2 {[%emt 0:00:55]} Nc6 {[%emt 0:01:19]} 5. a3 {[%emt 0:00:16]} d6 {[%emt 0:04:26]} 6. h3 {[%emt 0:01:31]} Be6 {[%emt 0:01:10]} 7. Nbc3 {[%emt 0:00:51]} Qd7 {[%emt 0:05:10]} 8. Ng3 {[%emt 0:01:31]} Ne7 {[%emt 0:02:00]} 9. Bg5 {[%emt 0:03:39]} O-O-O {[%emt 0:08:36]} 10. Bxf6 {[%emt 0:13:50]} gxf6 {[%emt 0:00:42]} 11. Nh5 {[%emt 0:00:12]} f5 {[%emt 0:07:35]} 12. Nf6 {[%emt 0:06:18]} Qc6 {[%emt 0:00:21]} 13. Bd5 {[%emt 0:08:35]} Bxd5 {[%emt 0:11:45]} 14. Ncxd5 {[%emt 0:05:06]} Nxd5 {[%emt 0:02:21]} 15. Nxd5 {[%emt 0:00:23]} Qd7 {[%emt 0:02:05]} 16. exf5 {[%emt 0:02:41]} c6 {[%emt 0:01:33]} 17. Ne3 {[%emt 0:04:16]} Bxe3 {[%emt 0:02:35]} 18. fxe3 {[%emt 0:00:12]} Qxf5 {[%emt 0:00:05]} 19. Rf1 {[%emt 0:01:21]} Qg5 {[%emt 0:03:19]} 20. Qf3 {[%emt 0:00:02]} Rd7 {[%emt 0:02:30]} 21. O-O-O {[%emt 0:04:20]} h5 {[%emt 0:00:46]} 22. g4 {[%emt 0:05:00]} hxg4 {[%emt 0:04:52]} 23. hxg4 {[%emt 0:01:28]} Rg8 {[%emt 0:03:48]} 24. Rg1 {[%emt 0:00:02]} d5 {[%emt 0:04:56]} 25. Kb1 {[%emt 0:01:42]} Rg6 {[%emt 0:04:07]} 26. Rdf1 {[%emt 0:01:20]} c5 {[%emt 0:01:49]} 27. Qg3 {[%emt 0:01:32]} Qe7 {[%emt 0:07:52]} 28. g5 {[%emt 0:05:51]} c4 {[%emt 0:02:37]} 29. Rf5 {[%emt 0:02:10]} Rb6 {[%emt 0:09:59]} 30. Ka2 {[%emt 0:19:31]} c3 {[%emt 0:00:04]} 31. Rb1 {[%emt 0:00:18]} e4 {[%emt 0:04:15]} 32. d4 {[%emt 0:02:16]} cxb2 {[%emt 0:01:11]} 33. Rxb2 {[%emt 0:00:11]} Ra6 {[%emt 0:00:35]} 34. Rb3 {[%emt 0:00:02]} Rc7 {[%emt 0:00:04]} 35. Kb2 {[%emt 0:00:52]} Rac6 {[%emt 0:00:20]} 36. c3 {[%emt 0:00:30]} Qd7 {[%emt 0:01:14]} 37. Qe5 {[%emt 0:00:30]} Rd6 {[%emt 0:00:37]} 38. Rf2 {[%emt 0:01:41]} a5 {[%emt 0:00:28]} 39. Rh2 {[%emt 0:00:14]} Kb8 {[%emt 0:00:05]} 40. a4 {[%emt 0:00:26]} Re6 {[%emt 0:00:56]} 41. Rh8+ {[%emt 0:01:01]} Ka7 {[%emt 0:00:08]} 42. Qf5 {[%emt 0:00:05]} Qxa4 {[%emt 0:01:18]} 43. Qxd5 {[%emt 0:00:29]} Rec6 {[%emt 0:00:24]} 44. Ra3 {[%emt 0:01:58]} Rb6+ {[%emt 0:00:02]} 45. Rb3 {[%emt 0:00:20]} Rbc6 {[%emt 0:00:02]} 46. Rh2 {[%emt 0:00:26]} Qc4 {[%emt 0:01:28]} 47. Qxe4 {[%emt 0:00:29]} a4 {[%emt 0:00:13]} 48. Ra3 {[%emt 0:00:01]} Rb6+ {[%emt 0:00:17]} 49. Ka1 {[%emt 0:02:04]} Qf1+ {[%emt 0:00:03]} 50. Ka2 {[%emt 0:00:06]} Qc4+ {[%emt 0:00:03]} 51. Ka1 {[%emt 0:00:33]} Rb3 {[%emt 0:01:07]} 52. Rxb3 {[%emt 0:01:11]} axb3 {[%emt 0:00:57]} 53. Rb2 {[%emt 0:03:31]} Qa6+ {[%emt 0:00:08]} 54. Kb1 {[%emt 0:00:06]} Qf1# {[%emt 0:00:03]} 0-1

[Event "28th Bosnjaci Open 2024"]
[Site "Bosnjaci"]
[Date "2024.01.06"]
[Round "5.1"]
[White "Plenkovic, Zdenko"]
[Black "Muratovic, Efim"]
[Result "1/2-1/2"]
[ECO "C42"]
[WhiteElo "2335"]
[BlackElo "2345"]
[Annotator "RC"]
[PlyCount "49"]
[EventDate "2024.01.02"]
[EventType "swiss"]
[EventCountry "CRO"]
[SourceTitle "playchess.com"]
[Source "ChessBase"]
[SourceQuality "1"]
[TimeControl "5400+30"]

1. e4 {[%emt 0:00:18]} e5 {[%emt 0:00:32]} 2. Nf3 {[%emt 0:00:07]} Nf6 {[%emt 0:00:33]} 3. Nxe5 {[%emt 0:02:32]} d6 {[%emt 0:00:09]} 4. Nf3 {[%emt 0:00:04]} Nxe4 {[%emt 0:00:07]} 5. Nc3 {[%emt 0:00:04]} Nf6 {[%emt 0:05:45]} 6. d4 {[%emt 0:01:14]} Be7 {[%emt 0:00:07]} 7. Be3 {[%emt 0:04:31]} O-O {[%emt 0:01:04]} 8. h3 {[%emt 0:04:12]} Nbd7 {[%emt 0:04:06]} 9. Bd3 {[%emt 0:01:46]} Nb6 {[%emt 0:04:03]} 10. O-O {[%emt 0:00:18]} Be6 {[%emt 0:03:08]} 11. Ne2 {[%emt 0:09:10]} Qc8 {[%emt 0:07:06]} 12. Ng3 {[%emt 0:01:52]} c5 {[%emt 0:05:07]} 13. c3 {[%emt 0:00:15]} Re8 {[%emt 0:01:39]} 14. Re1 {[%emt 0:00:21]} Qc6 {[%emt 0:04:16]} 15. Nf5 {[%emt 0:12:49]} Bf8 {[%emt 0:00:23]} 16. Bg5 {[%emt 0:05:25]} c4 {[%emt 0:07:50]} 17. Bc2 {[%emt 0:01:24]} Nbd7 {[%emt 0:01:19]} 18. Qd2 {[%emt 0:04:00]} Bd5 {[%emt 0:15:50]} 19. Bxf6 {[%emt 0:03:43]} Nxf6 {[%emt 0:00:06]} 20. Qg5 {[%emt 0:00:49]} Bxf3 {[%emt 0:02:43]} 21. Nh6+ {[%emt 0:00:52]} Kh8 {[%emt 0:00:07]} 22. Nxf7+ {[%emt 0:00:05]} Kg8 {[%emt 0:00:05]} 23. Nh6+ {[%emt 0:00:04]} Kh8 {[%emt 0:00:04]} 24. gxf3 {[%emt 0:05:46]} Qxf3 {[%emt 0:36:21]} 25. Nf7+ 1/2-1/2